bitfinex-derivatives/quotes_SOLF0:USTF0_20250125
["timestamp","ask_amount","ask_price","bid_price","bid_amount"]
[1737845997415,2.5694,259.14,259.01,0.0297165]
[1737845997416,0.02816328,259.06,259.01,0.0297165]
[1737845998112,3.8612,259.02,259.01,0.0297165]
[1737846000422,5.38350853,259.02,258.91,5.38350853]
[1737846000621,3.862,259.39,258.91,5.38350853]
[1737846000622,5.38350853,258.99,258.91,5.38350853]
[1737846001222,1.2233,259.01,258.91,5.38350853]
[1737846001625,0.02814207,258.99,258.93,0.0276762]
[1737846002624,3.88994207,258.99,258.94,5.38350853]
[1737846003325,3.862,258.97,258.94,5.38350853]
[1737846003527,0.02814207,258.99,258.94,5.38350853]
[1737846005228,3.8622,258.96,258.94,5.38350853]
[1737846006621,3.8619,258.98,258.94,5.38350853]
[1737846007128,0.02814207,258.99,258.94,5.38350853]
[1737846007927,3.862,258.97,258.94,5.38350853]
[1737846008228,0.02814207,258.99,258.94,5.38350853]
[1737846008431,0.02814207,258.99,258.97,9.24540853]
[1737846009731,3.8608,259.06,258.98,3.8617]
[1737846009926,3.8608,259.06,259.02,5.38350853]
[1737846010121,3.8605,259.08,259.02,5.38350853]
[1737846010428,5.38350853,259.14,259.05,5.38350853]
[1737846010828,0.02721953,259.12,259.07,0.0292217]
[1737846011029,0.02721953,259.12,259.07,5.41273023]
[1737846011329,3.8599,259.11,259.07,5.41273023]
[1737846011530,0.02721953,259.12,259.07,5.41273023]
[1737846012427,3.86,259.11,259.07,5.41273023]
[1737846012626,0.02721953,259.12,259.07,5.41273023]
[1737846013635,3.8603,259.09,259.07,0.0292217]
[1737846016433,5.38350853,259.08,259.07,0.0292217]
[1737846017034,3.8603,259.09,259.07,0.0292217]
[1737846017929,3.86,259.11,259.07,0.0292217]
[1737846018332,0.02721953,259.12,259.07,5.41273023]
[1737846019737,3.8602,259.09,259.07,5.41273023]
[1737846022436,3.86,259.11,259.07,5.41273023]
[1737846022632,0.02721953,259.12,259.07,5.41273023]
[1737846023940,3.88711953,259.12,259.07,5.41273023]
[1737846024135,3.88711953,259.12,259.09,5.38350853]
[1737846025836,0.02721953,259.12,259.09,5.38350853]
[1737846035954,3.88701953,259.12,259.09,5.38350853]
[1737846037559,0.02721953,259.12,259.11,5.38350853]
[1737846038850,0.02721953,259.12,259.11,9.24340853]
[1737846039052,68.29152167,259.23,259.11,5.38350853]
[1737846039257,68.29152167,259.23,259.15,5.38350853]
[1737846040158,0.02795698,259.22,259.16,0.02436159]
[1737846041549,0.02795698,259.22,259.19,5.38350853]
[1737846041954,0.02795698,259.22,259.21,5.38350853]
[1737846043358,3.8575,259.27,259.21,5.38350853]
[1737846043559,3.8575,259.27,259.23,5.38350853]
[1737846044251,3.8573,259.29,259.23,5.38350853]
[1737846044557,0.02014858,259.28,259.23,5.38350853]
[1737846044759,0.02014858,259.28,259.23,9.24160853]
[1737846045557,0.02014858,259.28,259.25,5.38350853]
[1737846047757,3.87754858,259.28,259.25,5.38350853]
[1737846049264,3.87754858,259.28,259.27,5.38350853]
[1737846049965,0.02014858,259.28,259.27,5.38350853]
[1737846051061,64.61637302,259.36,259.27,5.38350853]
[1737846051261,3.8557,259.39,259.35,5.38350853]
[1737846051462,3.8557,259.39,259.38,5.38350853]
[1737846052060,5.38350853,259.45,259.38,5.38350853]
[1737846052259,3.8556,259.4,259.38,5.38350853]
[1737846056163,5.38350853,259.47,259.38,5.38350853]
[1737846056362,5.38350853,259.47,259.4,5.38350853]
[1737846057864,5.38350853,259.49,259.4,5.38350853]
[1737846058364,5.38350853,259.49,259.42,0.02805331]
[1737846059062,3.8552,259.43,259.42,0.02805331]
[1737846060368,5.38350853,259.49,259.42,0.02805331]
[1737846060870,5.38350853,259.51,259.42,5.41156184]
[1737846061073,5.38350853,259.51,259.44,5.38350853]
[1737846061365,3.8546,259.47,259.44,5.38350853]
[1737846062174,5.38350853,259.53,259.44,5.38350853]
[1737846062375,5.38350853,259.55,259.46,5.38350853]
[1737846062876,5.38350853,259.55,259.48,0.02768865]
[1737846064075,3.8542,259.49,259.48,0.02768865]
[1737846065867,3.8541,259.51,259.48,0.02768865]
[1737846066075,3.8541,259.51,259.48,5.41119718]
[1737846066374,5.38350853,259.55,259.48,5.41119718]
[1737846066775,14.0832,259.61,258.89,1.56165257]
[1737846066977,5.38350853,259.39,259.31,5.38350853]
[1737846067172,5.38350853,259.36,259.28,5.38350853]
[1737846067671,3.8575,259.27,259.25,5.38350853]
[1737846067873,5.38350853,259.33,259.22,5.38350853]
[1737846068067,5.38350853,259.3,259.22,5.38350853]
[1737846068268,3.858,259.24,259.23,0.02657072]
[1737846068672,3.858,259.24,259.13,5.38350853]
[1737846068673,5.38350853,259.24,259.13,5.38350853]
[1737846069071,3.8594,259.15,259.13,5.38350853]
[1737846069276,5.38350853,259.21,259.1,138.71832225]
[1737846069680,5.38350853,259.18,259.1,138.71832225]
[1737846069982,5.40835704,259.18,259.13,0.02912822]
[1737846070277,5.38350853,259.14,259.03,7.90950853]
[1737846070472,5.38350853,259.08,258.98,5.38350853]
[1737846070878,3.8608,259.05,258.98,5.38350853]
[1737846071478,0.02745903,259.04,258.99,0.02470409]
[1737846075775,3.8612,259.03,258.99,0.02470409]
[1737846076279,0.02745903,259.04,258.99,0.02470409]
[1737846076477,3.8614,259.01,258.99,0.02470409]
[1737846079282,3.8612,259.03,258.99,0.02470409]
[1737846079581,0.02745903,259.04,258.99,0.02470409]
[1737846080081,3.8611,259.03,258.99,0.02470409]
[1737846080480,3.8613,259.02,258.99,0.02470409]
[1737846080682,0.02745903,259.04,258.99,0.02470409]
[1737846081380,3.8614,259.01,258.99,0.02470409]
[1737846087481,12.23104634,259.01,258.99,4.09e-06]
[1737846089087,3.8634,258.88,258.84,3.891]
[1737846089581,3.864,258.84,258.81,8.36964634]
[1737846089782,8.36964634,258.89,258.75,2.5739]
[1737846090084,8.39503095,258.85,258.79,0.02702316]
[1737846090587,8.39503095,258.85,258.79,0.02441961]
[1737846091588,3.8645,258.81,258.79,0.02441961]
[1737846101598,8.39503095,258.85,258.79,0.02441961]
[1737846101902,3.8645,258.8,258.79,0.02441961]
[1737846104604,3.864,258.84,258.79,0.02441961]
[1737846104902,0.02538461,258.85,258.79,0.02441961]
[1737846105804,3.8643,258.82,258.79,0.02441961]
[1737846108201,0.02538461,258.85,258.79,0.02441961]
[1737846109101,0.02538461,258.85,258.8,3.8645]
[1737846109505,0.02538461,258.85,258.79,0.02441961]
[1737846110305,3.88918461,258.85,258.79,3.88901961]
[1737846115713,0.02538461,258.85,258.79,0.02441961]
[1737846116513,3.8644,258.81,258.79,0.02441961]
[1737846117311,3.8645,258.8,258.79,0.02441961]
[1737846119617,3.8645,258.8,258.79,1.961e-05]
[1737846121321,12.25063942,258.8,258.79,1.961e-05]
[1737846121816,8.38613942,258.8,258.62,2.5356]
[1737846122119,8.38613942,258.72,258.58,1.2257]
[1737846122318,8.38613942,258.67,258.58,1.2257]
[1737846122517,8.38613942,258.59,258.5,131.36156165]
[1737846123223,0.02655982,258.57,258.52,0.02640099]
[1737846123522,3.8685,258.54,258.52,0.02640099]
[1737846124521,3.8685,258.54,258.52,9.9e-07]
[1737846124719,3.8688,258.51,258.5,119.32466165]
[1737846124922,8.38613942,258.56,258.41,2.6752]
[1737846125117,91.90960937,258.6,258.44,8.38613942]
[1737846125323,83.52346995,258.6,258.48,8.38613942]
[1737846125523,3.8674,258.61,258.48,8.38613942]
[1737846125724,3.99341315,258.66,258.48,8.38613942]
[1737846126030,8.38613942,258.72,258.56,8.38613942]
[1737846126218,1.3035,258.75,258.57,3.7496]
[1737846126423,1.3035,258.75,258.6,8.38613942]
[1737846126623,8.38613942,258.76,258.6,8.38613942]
[1737846127116,0.02609648,258.71,258.65,0.02652226]
[1737846127324,3.8661,258.7,258.65,0.02652226]
[1737846128327,3.8665,258.67,258.65,0.02652226]
[1737846130419,8.38613942,258.68,258.48,8.38613942]
[1737846130626,8.38613942,258.63,258.44,8.38613942]
[1737846131524,3.8684,258.55,258.51,0.02515882]
[1737846133030,3.8685,258.54,258.51,0.02515882]
[1737846133428,0.02832232,258.56,258.51,0.02515882]
[1737846133628,3.8694,258.48,258.42,3.9122]
[1737846133822,8.38613942,258.55,258.36,8.38613942]
[1737846134030,8.38613942,258.51,258.36,8.38613942]
[1737846134826,0.02476717,258.46,258.41,0.02575652]
[1737846137429,3.89436717,258.46,258.41,0.02575652]
[1737846139234,0.02476717,258.46,258.41,0.02575652]
[1737846139532,8.38613942,258.59,258.41,0.02575652]
[1737846139732,8.38613942,258.59,258.4,8.38613942]
[1737846139943,3.8688,258.52,258.4,8.38613942]
[1737846140238,8.38613942,258.63,258.44,8.38613942]
[1737846140531,3.99352296,258.65,258.51,3.8688]
[1737846140727,0.02569014,258.56,258.52,1.3159]
[1737846140933,0.02569014,258.56,258.52,2.6339]
[1737846141331,3.8673,258.62,258.53,3.8685]
[1737846141536,3.99352296,258.65,258.52,11.02003942]
[1737846142135,3.99352296,258.65,258.52,2.6339]
[1737846142634,0.02812212,258.61,258.56,0.02848724]
[1737846142938,3.8677,258.59,258.56,0.02848724]
[1737846143233,0.02812212,258.61,258.56,0.02848724]
[1737846143831,3.8678,258.58,258.56,0.02848724]
[1737846147434,0.02812212,258.61,258.56,0.02848724]
[1737846148237,3.8679,258.58,258.56,0.02848724]
[1737846155840,3.8679,258.58,258.56,8.724e-05]
[1737846157542,13.44575482,258.6,258.43,1.345]
[1737846157737,3.8692,258.49,258.43,1.345]
[1737846158042,13.44575482,258.55,258.43,1.345]
[1737846158848,0.0263671,258.52,258.46,0.02732759]
[1737846159047,3.8695,258.47,258.46,0.02732759]
[1737846162259,3.8693,258.48,258.46,0.02732759]
[1737846162950,3.8693,258.48,258.46,2.759e-05]
[1737846163147,13.44575482,258.47,258.46,2.759e-05]
[1737846163653,8.41301226,258.47,258.46,2.759e-05]
[1737846165452,12.28241226,258.47,258.46,2.759e-05]
[1737846166653,3.871,258.37,258.34,1.2695]
[1737846166857,8.41301226,258.4,258.34,1.2695]
[1737846167265,3.871,258.37,258.34,1.2695]
[1737846168256,0.02742952,258.38,258.34,1.2695]
[1737846168460,3.8711,258.36,258.33,1.34693697]
[1737846170256,3.8714,258.34,258.33,0.02693697]
[1737846170653,0.02742952,258.38,258.33,0.02693697]
[1737846171560,3.8713,258.35,258.33,0.02693697]
[1737846172262,3.8714,258.34,258.33,0.02693697]
[1737846177464,8.41301226,258.36,258.19,3.8735]
[1737846177667,8.41301226,258.29,258.19,6.5319]
[1737846177966,8.41301226,258.29,258.19,2.6584]
[1737846178567,3.873,258.23,258.21,0.0290454]
[1737846179070,3.8732,258.22,258.21,0.0290454]
[1737846181067,12.28621226,258.22,258.21,0.0290454]
[1737846183366,3.8732,258.22,258.21,0.0290454]
[1737846185771,8.41301226,258.25,258.21,0.0290454]
[1737846186169,0.02485994,258.27,258.21,0.0290454]
[1737846186370,3.8726,258.26,258.21,0.0290454]
[1737846186774,0.02485994,258.27,258.21,0.0290454]
[1737846187272,8.41301226,258.35,258.24,3.8728]
[1737846187466,8.41301226,258.35,258.25,2.575]
[1737846188175,2.86,258.5,258.25,2.575]
[1737846188374,0.02654953,258.33,258.27,0.02772053]
[1737846188668,3.871,258.37,258.28,3.8722]
[1737846188872,8.41301226,258.36,258.25,2.575]
[1737846189673,0.02676726,258.33,258.28,0.02480481]
[1737846193471,8.41301226,258.4,258.28,0.02480481]
[1737846193675,8.41301226,258.4,258.26,8.41301226]
[1737846193879,8.41301226,258.45,258.26,8.41301226]
[1737846194270,8.41301226,258.45,258.3,3.872]
[1737846194674,0.02743743,258.4,258.35,0.02565448]
[1737846194874,3.8709,258.38,258.35,0.02565448]
[1737846195375,0.02743743,258.4,258.35,0.02565448]
[1737846195775,2.84,258.51,258.35,0.02565448]
[1737846195776,8.41301226,258.54,258.35,0.02565448]
[1737846195974,8.41301226,258.54,258.38,8.41301226]
[1737846196169,8.41301226,258.54,258.39,1.3356]
[1737846196476,8.41301226,258.58,258.42,8.41301226]
[1737846196675,3.8688,258.52,258.45,3.8697]
[1737846197078,3.8688,258.52,258.47,0.02622142]
[1737846197380,0.02777848,258.53,258.47,0.02622142]
[1737846198180,3.89637848,258.53,258.47,0.02622142]
[1737846201183,0.02777848,258.53,258.47,0.02622142]
[1737846201786,0.02777848,258.53,258.49,3.869]
[1737846202088,3.8681,258.56,258.49,3.869]
[1737846202785,8.41301226,258.62,258.47,0.02622142]
[1737846202989,3.8678,258.59,258.51,3.8688]
[1737846203185,0.0270271,258.57,258.46,9.63941226]
[1737846203390,0.0270271,258.57,258.52,0.02455046]
[1737846203589,0.0270271,258.57,258.52,3.89315046]
[1737846204891,0.0270271,258.57,258.52,0.02455046]
[1737846206689,3.8684,258.54,258.52,0.02455046]
[1737846208894,0.0270271,258.57,258.52,0.02455046]
[1737846209292,0.0270271,258.57,258.52,3.89325046]
[1737846209596,0.0270271,258.57,258.52,0.02455046]
[1737846209791,0.0270271,258.57,258.52,3.89325046]
[1737846210003,0.0270271,258.57,258.52,0.02455046]
[1737846211093,19.349,258.81,258.54,8.41301226]
[1737846211295,3.8665,258.67,258.55,1.3026]
[1737846211697,89.81989299,258.7,258.58,8.41301226]
[1737846212193,89.81989299,258.7,258.62,12.28011226]
[1737846212393,0.02676139,258.67,258.62,8.41301226]
[1737846212592,89.81989299,258.7,258.62,8.41301226]
[1737846212793,8.41301226,258.78,258.63,1.3135]
[1737846213192,3.8654,258.75,258.67,8.41301226]
[1737846213390,8.41301226,258.82,258.67,8.41301226]
[1737846213797,0.02701637,258.77,258.71,0.0278347]
[1737846215099,0.02701637,258.77,258.71,8.44084696]
[1737846215998,3.89201637,258.77,258.71,8.44084696]
[1737846216398,3.89201637,258.77,258.72,1.3445]
[1737846216600,0.02701637,258.77,258.72,1.3445]
[1737846216802,0.02701637,258.77,258.71,0.0278347]
[1737846217301,3.8657,258.72,258.71,0.0278347]
[1737846217600,0.02701637,258.77,258.71,0.0278347]
[1737846217803,101.36322101,258.9,258.71,8.44084696]
[1737846217804,89.74322101,258.9,258.71,8.44084696]
[1737846218003,89.74322101,258.9,258.75,8.41301226]
[1737846218206,3.864,258.84,258.77,3.8649]
[1737846218998,3.864,258.84,258.78,0.02471115]
[1737846219205,89.74322101,258.9,258.78,0.02471115]
[1737846219405,8.41301226,258.87,258.78,0.02471115]
[1737846219604,3.8646,258.8,258.78,0.02471115]
[1737846221008,3.8658,258.72,258.66,2.5586]
[1737846221911,3.8655,258.74,258.66,2.5586]
[1737846222309,0.02678205,258.73,258.67,0.02495037]
[1737846222512,0.02678205,258.73,258.71,3.8658]
[1737846222811,3.8645,258.8,258.71,3.8658]
[1737846223106,8.41301226,258.87,258.67,8.41301226]
[1737846223306,3.8644,258.81,258.71,8.41301226]
[1737846223613,8.41301226,258.87,258.71,8.41301226]
[1737846223809,3.8648,258.79,258.73,0.02870257]
[1737846224512,3.8642,258.82,258.75,3.8652]
[1737846224910,3.8642,258.82,258.76,0.02686456]
[1737846225110,8.41301226,258.87,258.76,0.02686456]
[1737846226211,3.864,258.84,258.76,0.02686456]
[1737846226412,8.41301226,258.87,258.76,0.02686456]
[1737846227015,3.8648,258.78,258.76,0.02686456]
[1737846232815,89.74322101,258.9,258.76,0.02686456]
[1737846233415,13.42603545,258.87,258.76,0.02686456]
[1737846233813,3.865,258.77,258.76,0.02686456]
[1737846235616,3.8645,258.81,258.76,0.02686456]
[1737846235821,89.74322101,258.9,258.76,0.02686456]
[1737846237724,3.8647,258.79,258.76,0.02686456]
[1737846237921,89.74322101,258.9,258.76,0.02686456]
[1737846238222,3.8635,258.87,258.76,0.02686456]
[1737846238424,89.74322101,258.9,258.76,0.02686456]
[1737846239024,3.8634,258.88,258.8,3.8645]
[1737846239428,3.8634,258.88,258.81,0.0281331]
[1737846240430,3.8625,258.94,258.85,3.8637]
[1737846240827,3.8626,258.93,258.87,0.02656]
[1737846241134,13.42603545,258.99,258.82,3.8448]
[1737846241321,3.8622,258.96,258.87,0.02664608]
[1737846241630,2.4964,259.06,258.87,0.02664608]
[1737846241924,2.4964,259.06,258.85,13.42603545]
[1737846242129,2.4964,259.06,258.94,0.0243409]
[1737846242628,3.862,258.97,258.94,0.0243409]
[1737846243032,2.4964,259.06,258.94,0.0243409]
[1737846243231,3.8614,259.01,258.94,0.0243409]
[1737846243426,2.4964,259.06,258.94,0.0243409]
[1737846243928,3.8616,259.0,258.94,0.0243409]
[1737846244226,2.4964,259.06,258.94,0.0243409]
[1737846244433,13.42603545,259.19,258.99,13.42603545]
[1737846244634,14.65633545,259.23,259.0,2.5443]
[1737846244831,3.8601,259.1,259.06,0.02499104]
[1737846245130,14.65633545,259.23,259.0,2.5443]
[1737846245332,14.65633545,259.23,259.05,0.02616645]
[1737846245534,14.65633545,259.23,259.03,13.42603545]
[1737846245832,14.65633545,259.23,259.11,0.02858877]
[1737846246033,3.8598,259.12,259.11,0.02858877]
[1737846247034,3.8594,259.15,259.11,0.02858877]
[1737846247526,3.8595,259.14,259.11,0.02858877]
[1737846247733,14.65633545,259.23,259.11,0.02858877]
[1737846248329,1.2303,259.23,259.11,0.02858877]
[1737846248726,1.2949,259.25,259.11,0.02858877]
[1737846250033,3.8588,259.19,259.11,0.02858877]
[1737846250233,8.3609575,259.23,259.11,0.02858877]
[1737846250836,3.8592,259.16,259.11,0.02858877]
[1737846251631,8.3609575,259.23,259.11,0.02858877]
[1737846252132,3.8597,259.13,259.11,0.02858877]
[1737846254636,13.38796678,259.15,259.0,2.5443]
[1737846254833,13.38796678,259.15,258.93,13.38796678]
[1737846255135,13.38796678,259.11,258.89,13.38796678]
[1737846255435,13.38796678,259.11,258.9,0.70947883]
[1737846255835,0.02524264,259.03,258.98,0.02798882]
[1737846258133,0.02524264,259.03,258.98,13.4159556]
[1737846258442,0.02524264,259.03,258.98,0.02798882]
[1737846258943,3.8615,259.0,258.98,0.02798882]
[1737846260946,0.02524264,259.03,258.85,15.97516678]
[1737846261144,13.38796678,259.03,258.85,1.2394]
[1737846261340,2.5996,259.02,258.81,13.38796678]
[1737846261545,13.38796678,258.99,258.77,13.38796678]
[1737846261844,2.5996,259.02,258.81,13.38796678]
[1737846262146,3.8622,258.96,258.89,0.0272255]
[1737846262344,0.02812844,258.94,258.89,0.0272255]
[1737846262744,3.89062844,258.94,258.89,0.0272255]
[1737846262943,0.02812844,258.94,258.89,0.0272255]
[1737846263946,3.863,258.91,258.89,0.0272255]
[1737846265143,3.8638,258.85,258.77,13.38796678]
[1737846265344,13.38796678,258.95,258.76,2.5523]
[1737846265646,13.38796678,258.91,258.69,13.38796678]
[1737846265844,1.2822,258.9,258.69,17.25406678]
[1737846266246,3.8659,258.71,258.62,3.7741]
[1737846266439,0.02714418,258.82,258.63,0.7101605]
[1737846266641,13.38796678,258.83,258.64,0.02943134]
[1737846266841,3.8649,258.78,258.65,13.38796678]
[1737846267147,0.02965404,258.75,258.66,0.7101266]
[1737846267349,3.8655,258.74,258.69,0.02964807]
[1737846267649,0.02965404,258.75,258.69,0.02964807]
[1737846268046,3.8655,258.74,258.69,0.02964807]
[1737846268350,0.02965404,258.75,258.69,0.02964807]
[1737846268548,3.8641,258.83,258.7,17.25386678]
[1737846268850,13.38796678,258.87,258.7,3.8659]
[1737846269850,0.02796253,258.81,258.76,0.02679056]
[1737846270551,0.02796253,258.81,258.62,3.7741]
[1737846270848,3.8652,258.76,258.62,3.7741]
[1737846271145,13.38796678,258.87,258.66,13.38796678]
[1737846271350,3.864,258.84,258.73,3.8655]
[1737846271551,1.2466,258.88,258.7,13.38796678]
[1737846271746,0.02583247,258.81,258.76,0.02492161]
[1737846279357,0.02583247,258.81,258.79,3.8645]
[1737846279753,0.02583247,258.81,258.76,0.02492161]
[1737846279960,0.02583247,258.81,258.77,3.8649]
[1737846280158,0.02583247,258.81,258.76,0.02492161]
[1737846281053,0.02583247,258.81,258.76,2.55762161]
[1737846281258,0.02583247,258.81,258.76,3.86802161]
[1737846281659,17.14536678,258.97,258.76,3.86802161]
[1737846281856,17.14536678,258.97,258.76,3.8431]
[1737846282959,0.02861487,258.89,258.84,0.02648845]
[1737846283757,13.38796678,259.05,258.84,13.41445523]
[1737846284259,3.8623,258.95,258.87,3.8633]
[1737846284457,13.38796678,259.05,258.84,0.02648845]
[1737846284661,13.38796678,259.05,258.84,13.38796678]
[1737846284858,3.8617,258.99,258.91,3.8628]
[1737846285163,3.8704,259.08,258.88,13.38796678]
[1737846285462,0.02610372,258.98,258.92,13.41551409]
[1737846285662,0.02610372,258.98,258.92,13.38796678]
[1737846285961,0.02610372,258.98,258.92,13.41261937]
[1737846286156,17.28386678,259.17,258.92,13.41261937]
[1737846286365,17.28386678,259.17,258.92,13.38796678]
[1737846286561,3.8605,259.07,258.95,3.8622]
[1737846286761,13.38796678,259.13,258.92,13.38796678]
[1737846287161,3.8604,259.08,258.99,3.8616]
[1737846287356,3.8604,259.08,259.0,0.02476524]
[1737846287964,13.38796678,259.13,259.0,0.02476524]
[1737846288866,3.8613,259.02,259.0,0.02476524]
[1737846291773,13.38796678,259.13,259.0,0.02476524]
[1737846291979,3.8606,259.07,258.97,3.8619]
[1737846292376,3.8606,259.07,259.04,0.02721396]
[1737846292578,3.8607,259.06,259.04,0.02721396]
[1737846293079,3.8606,259.07,259.04,0.02721396]
[1737846294380,3.8607,259.06,259.04,0.02721396]
[1737846294779,17.28386678,259.17,259.04,0.02721396]
[1737846294980,3.8601,259.1,259.04,0.02721396]
[1737846295281,17.28386678,259.17,259.04,0.02721396]
[1737846295582,3.86,259.11,259.04,0.02721396]
[1737846295782,17.28386678,259.17,259.04,0.02721396]
[1737846296981,3.8601,259.1,259.04,0.02721396]
[1737846297579,17.28386678,259.17,259.04,0.02721396]
[1737846297580,3.8602,259.09,259.04,0.02721396]
[1737846298187,17.28386678,259.17,259.04,0.02721396]
[1737846298484,3.8604,259.08,259.04,0.02721396]
[1737846298685,17.28386678,259.17,259.04,0.02721396]
[1737846300590,13.38796678,259.09,258.89,193.8569]
[1737846301385,25.00796678,259.13,258.89,193.8569]
[1737846301778,0.02721396,259.04,258.98,0.02940321]
[1737846302783,3.8616,259.0,258.98,0.02940321]
[1737846303181,0.02721396,259.04,258.89,2.5846]
[1737846303382,3.8628,258.92,258.89,2.5846]
[1737846303684,3.8628,258.92,258.89,1.254]
[1737846303881,3.8629,258.91,258.83,3.864]
[1737846304286,13.38796678,259.01,258.82,3.8641]
[1737846304482,0.02963537,258.9,258.84,0.02691988]
[1737846304684,0.02963537,258.9,258.81,1.2619]
[1737846304982,3.8635,258.87,258.84,0.02457575]
[1737846305287,0.02963537,258.9,258.84,0.02457575]
[1737846306287,3.8637,258.86,258.84,0.02457575]
[1737846306683,3.8653,258.75,258.73,2.4717]
[1737846306878,3.8653,258.75,258.66,13.38796678]
[1737846307185,13.38796678,258.85,258.65,3.7609]
[1737846307979,0.02631176,258.78,258.72,0.02631028]
[1737846310188,0.02631176,258.78,258.73,3.8655]
[1737846310987,0.02631176,258.78,258.72,0.02631028]
[1737846312991,0.02631176,258.78,258.76,3.865]
[1737846313191,1.2239,258.92,258.74,13.38796678]
[1737846313591,3.8639,258.84,258.76,3.865]
[1737846313982,1.2239,258.92,258.74,13.38796678]
[1737846314182,3.8635,258.87,258.74,17.25326678]
[1737846314490,0.0270163,258.86,258.8,0.02799778]
[1737846314688,3.8646,258.8,258.7,3.8659]
[1737846315091,13.38796678,258.89,258.72,0.02879449]
[1737846315288,0.0294337,258.78,258.72,0.02879449]
[1737846315488,0.0294337,258.78,258.66,13.38796678]
[1737846315792,0.0294337,258.78,258.72,0.02501514]
[1737846316484,3.8943337,258.78,258.72,0.02501514]
[1737846316889,3.8653,258.75,258.72,0.02501514]
[1737846317292,0.0294337,258.78,258.72,0.02501514]
[1737846317493,3.8655,258.74,258.72,0.02501514]
[1737846317997,3.865,258.77,258.72,0.02501514]
[1737846318296,0.0294337,258.78,258.72,0.02501514]
[1737846319297,3.8654,258.74,258.72,0.02501514]
[1737846322994,3.8663,258.68,258.58,1.2607]
[1737846323192,3.8663,258.68,258.59,1.2569]
[1737846323496,3.7732,258.8,258.61,3.8673]
[1737846323994,3.8662,258.69,258.61,3.8673]
[1737846324192,0.02889985,258.73,258.68,0.02759995]
[1737846324394,3.8665,258.67,258.59,3.8675]
[1737846324797,0.02509804,258.66,258.6,0.02971192]
[1737846325292,3.8668,258.65,258.6,0.02971192]
[1737846326289,0.02509804,258.66,258.6,0.02971192]
[1737846326495,3.867,258.64,258.6,0.02971192]
[1737846326697,0.02509804,258.66,258.6,0.02971192]
[1737846328804,0.02509804,258.66,258.63,3.867]
[1737846331605,0.02509804,258.66,258.64,3.8669]
[1737846331800,0.02509804,258.66,258.6,8.42260658]
[1737846332004,3.7732,258.8,258.65,8.39289466]
[1737846332005,2.5237,258.8,258.65,8.39289466]
[1737846332204,3.8652,258.76,258.68,3.8662]
[1737846332403,8.39289466,258.85,258.66,1.2486]
[1737846332904,8.39289466,258.85,258.69,3.866]
[1737846333102,0.02962588,258.78,258.73,0.02888504]
[1737846333303,3.8651,258.76,258.73,0.02888504]
[1737846333604,0.02962588,258.78,258.73,0.02888504]
[1737846334004,3.8651,258.76,258.73,0.02888504]
[1737846334205,0.02962588,258.78,258.73,0.02888504]
[1737846335507,0.02962588,258.78,258.73,3.89438504]
[1737846335902,0.02962588,258.78,258.73,0.02888504]
[1737846336803,0.02962588,258.78,258.75,3.8652]
[1737846337206,0.02962588,258.78,258.73,0.02888504]
[1737846337405,0.02962588,258.78,258.74,3.8653]
[1737846337601,0.02962588,258.78,258.73,0.02888504]
[1737846337802,0.02962588,258.78,258.77,3.865]
[1737846338109,8.39289466,258.93,258.73,8.4217797]
[1737846338407,8.39289466,258.93,258.73,8.39289466]
[1737846339205,8.39289466,258.93,258.77,8.39289466]
[1737846339405,0.02517238,258.86,258.8,0.02850966]
[1737846339808,0.02517238,258.86,258.81,3.8643]
[1737846340209,0.02517238,258.86,258.8,0.02850966]
[1737846340403,0.02517238,258.86,258.82,3.8642]
[1737846340905,0.02517238,258.86,258.8,0.02850966]
[1737846341110,0.02517238,258.86,258.84,3.8639]
[1737846341412,3.8625,258.94,258.81,8.39289466]
[1737846341611,8.39289466,259.01,258.82,1.2238]
[1737846341918,8.39289466,259.01,258.85,8.39289466]
[1737846342510,3.8624,258.95,258.9,0.02453727]
[1737846342816,8.39289466,259.01,258.9,0.02453727]
[1737846344212,3.8624,258.95,258.9,0.02453727]
[1737846344409,8.39289466,259.01,258.9,0.02453727]
[1737846345210,2.5432,259.07,258.9,0.02453727]
[1737846345211,8.39289466,259.05,258.9,0.02453727]
[1737846345411,8.39289466,259.05,258.89,8.39289466]
[1737846345611,3.8612,259.02,258.95,0.02582369]
[1737846345811,8.39289466,259.05,258.95,0.02582369]
[1737846347115,3.8615,259.01,258.95,0.02582369]
[1737846347408,8.39289466,259.09,258.95,0.02582369]
[1737846347613,3.8608,259.05,258.97,3.8619]
[1737846347808,3.8608,259.05,258.99,0.02829319]
[1737846349110,3.8614,259.01,258.99,0.02829319]
[1737846353116,8.39289466,259.05,258.99,0.02829319]